[Event "44th Chess Olympiad Open 2022"]
[Site "Chennai"]
[Date "2022.08.03"]
[Round "6.24"]
[White "Adly, Ahmed"]
[Black "Barrish, Daniel"]
[Result "0-1"]
[WhiteElo "2582"]
[BlackElo "2283"]
[Annotator "TA"]
[PlyCount "136"]
[EventDate "2022.??.??"]
[TimeControl "60"]

{[%evp 14,136,-12,-6,-7,-10,8,0,-10,-37,0,12,6,-48,-49,-50,-47,-56,-48,-50,0,0,
72,71,63,-24,6,-43,0,0,0,0,0,0,0,0,112,0,0,-11,0,-18,0,0,0,0,0,-28,0,0,29,0,0,
-37,0,-67,-67,-67,-61,-46,-39,-60,-58,-183,-183,-183,-175,-175,-163,-164,-48,
-53,-51,-58,-54,-53,-54,-48,-61,-52,-59,-55,0,0,0,-69,-21,-69,-40,-40,-37,-148,
-148,-148,-148,-122,-48,-61,-35,-93,-27,-132,-59,-172,-91,-107,-54,-54,-54,-64,
-58,-196,-210,-731,-715,-715,-689,-625,-550,-760,-766,-922,-919,-756,-729]} 1.
Nf3 {[%emt 0:00:03]} Nf6 {[%emt 0:00:15]} 2. g3 {[%emt 0:00:06]} c5 {[%emt 0:
00:00]} 3. Bg2 {[%emt 0:00:15]} Nc6 {[%emt 0:00:29]} 4. O-O {[%emt 0:00:22]} e5
{[%emt 0:00:53]} 5. d3 {[%emt 0:04:07]} d5 {[%emt 0:00:41]} 6. Nbd2 {[%emt 0:
00:00]} Be7 {[%emt 0:00:57]} 7. e4 {[%emt 0:00:29]} d4 {[%emt 0:00:47]} 8. Nc4
{[%emt 0:03:13]} Nd7 {[%emt 0:02:33] A08: King's Indian Attack.} 9. a4 {
[%emt 0:00:19]} h5 {[%emt 0:02:01]} 10. h4 {[%emt 0:04:16]} f6 {[%emt 0:03:03]
The position is equal.} 11. Nh2 {[%emt 0:06:41] [#]} g5 $146 {[%emt 0:07:56]} (
11... Nb6 $15) ({Predecessor:} 11... Nb6 12. b3 Be6 13. Qe2 g5 14. hxg5 fxg5
15. f4 g4 16. f5 Bxc4 17. bxc4 Nd7 {0-1 (43) Karataev,O (1965)-Biriukov,O 
(2374) St Petersburg 2008}) 12. Bf3 $11 {[%emt 0:02:41]} g4 {[%emt 0:02:40]}
13. Bg2 {[%emt 0:02:14]} (13. Be2 $1 $11) 13... Nb6 $15 {[%emt 0:04:46]} 14. b3
{[%emt 0:02:43]} Be6 {[%emt 0:01:47]} 15. Bd2 {[%emt 0:04:19]} Qd7 {[%emt 0:00:
00]} 16. a5 {[%emt 0:01:48]} Nc8 {[%emt 0:00:42]} (16... Nxc4 $15 17. bxc4
O-O-O) 17. f3 $11 {[%emt 0:01:50]} Rg8 {[%emt 0:04:15]} (17... Nb4 $11) 18.
fxg4 $16 {[%emt 0:00:48]} hxg4 {[%emt 0:00:07] [#]} 19. Rf2 {[%emt 0:04:48]} (
19. Rf5 $1 $14) 19... Rb8 {[%emt 0:05:01]} 20. Qf1 {[%emt 0:09:43]} (20. Qe2
$11) 20... b5 {[%emt 0:05:44]} 21. axb6 $1 {[%emt 0:00:23]} axb6 {[%emt 0:00:
00]} 22. Ra6 {[%emt 0:00:37]} b5 {[%emt 0:07:35]} 23. Na5 {[%emt 0:00:17]} Nxa5
{[%emt 0:01:48]} 24. Bxa5 {[%emt 0:00:04]} Kf7 {[%emt 0:03:12] [#]} (24... Rf8
$1 $11) 25. Bd2 {[%emt 0:15:53]} (25. Rf5 $1 $16 {[%cal Rf5e5]}) 25... Nd6 $11
{[%emt 0:01:06]} 26. Bg5 {[%emt 0:00:29][%cal Rf2f6]} Rg6 {[%emt 0:02:19]} 27.
Qc1 {[%emt 0:00:35]} c4 {[%emt 0:08:08]} 28. h5 {[%emt 0:00:00]} Rg7 {[%emt 0:
01:09]} 29. bxc4 {[%emt 0:11:42]} bxc4 {[%emt 0:00:39]} 30. Ra5 {[%emt 0:00:01]
} Nb5 {[%emt 0:09:09] Strongly threatening ...Nc3.} 31. Bh4 {[%emt 0:04:35]
aiming for Qh6.} Rh8 {[%emt 0:09:29] Prevents Qh6.} 32. Qf1 {[%emt 0:00:04]} (
32. Qb1 $5 {[%cal Ra5b5]} Nc3 33. Qf1 Rxh5 34. Bxf6 Bxf6 35. Rxf6+ Kg8 36. Ra8+
(36. dxc4 Qe7 $11) 36... Kh7 37. Rff8 $11 (37. dxc4 Qe7 $15)) 32... Rh6 {
[%emt 0:02:04]} 33. dxc4 {[%emt 0:00:11]} Nd6 {[%emt 0:02:13]} 34. Rxe5 {
[%emt 0:01:05]} (34. Qa1 $11 Kg8 35. Ra7) 34... Nxc4 $15 {[%emt 0:00:57]} 35.
Bg5 {[%emt 0:00:04]} Nxe5 {[%emt 0:01:48]} (35... Ne3 36. Qa1 Qc7 37. Qxd4 (37.
Bxh6 Qxe5 38. Bxg7 Kxg7 $16) 37... Nxc2 38. Qb2 $16) 36. Bxh6 {[%emt 0:00:00]}
Rh7 {[%emt 0:05:15]} 37. Bg5 {[%emt 0:00:04][%cal Rg5f6]} Qd8 $1 {[%emt 0:00:
00] Black has compensation.} 38. h6 {[%emt 0:01:35]} (38. Qb5 $15 Kg8 39. h6)
38... Kg6 $19 {[%emt 0:01:10]} (38... Bc4 39. Qd1 Be6 40. Bf4 $11) 39. Bf4 {
[%emt 0:00:27]} d3 {[%emt 0:00:54]} 40. Kh1 {[%emt 0:01:13]} Bc5 {[%emt 0:00:
53]} 41. Rd2 {[%emt 0:30:12]} Bb4 {[%emt 0:03:13] Active counter play!} (41...
Qd4 $1 $19 42. Rd1 (42. cxd3 Ra7 $17) 42... Ra7) 42. Rd1 $1 $15 {[%emt 0:00:00]
[%cal Rc2d3]} (42. Rxd3 $2 Nxd3 43. cxd3 Bf8 $17) 42... d2 {[%emt 0:03:55]} 43.
Qb5 $1 {[%emt 0:00:00]} Bc3 {[%emt 0:02:28]} 44. Nf1 $1 {[%emt 0:00:00]} Bc4 {
[%emt 0:01:20]} 45. Qc5 {[%emt 0:00:00]} Be2 $1 {[%emt 0:00:00] ...Rc7 is the
strong threat.} 46. Rxd2 {[%emt 0:00:00]} Bxd2 {[%emt 0:00:00]} 47. Nxd2 {
[%emt 0:00:00]} Qe7 {[%emt 0:03:35]} (47... Rf7 $15) 48. Qc8 $1 $11 {[%emt 0:
00:00] Black must now prevent Qf5+.} Qd7 $36 {[%emt 0:01:56] Prevents Qf5+.
White is under pressure.} 49. Qc5 {[%emt 0:00:00]} (49. Qg8+ $11 Kh5 50. Be3)
49... Nf3 {[%emt 0:02:12]} (49... Rf7 $15) 50. Qf2 {[%emt 0:00:00] [#]} (50.
Bxf3 $11 {feels stronger.} gxf3 51. Kh2) 50... Qd4 $1 {[%emt 0:03:57] The
board is on fire.} 51. Qxd4 {[%emt 0:00:00]} Nxd4 {[%emt 0:00:00][%cal Yf3d4,
Yd4e6,Ye6g5]} 52. c4 {[%emt 0:00:00]} (52. e5 $15) 52... Ne6 $17 {[%emt 0:01:
21]} 53. Be3 {[%emt 0:00:00][%cal Ye4e5]} Ng5 $1 {[%emt 0:00:41]} 54. Kg1 {
[%emt 0:00:00]} Rc7 {[%emt 0:02:16]} (54... Rxh6 $17 55. Kf2 Rh2) 55. c5 {
[%emt 0:00:00][%cal Ye4e5]} Bb5 {[%emt 0:01:09]} 56. Kf2 {[%emt 0:00:00]} (56.
e5 $1 $15) 56... Bc6 {[%emt 0:01:11]} (56... Ra7 $17 {And now ...Nh3+ would
win.} 57. Bxg5 fxg5) 57. Bf4 {[%emt 0:00:00]} (57. Bf1 $11 {remains equal.})
57... Re7 {[%emt 0:00:48]} ({Black should try} 57... Ra7 $1 $17 {Hoping for ...
Ra2.} 58. h7 Kxh7 59. Bxg5 fxg5) 58. Bd6 {[%emt 0:00:00] [#]} (58. Bf1 $15)
58... Re8 {[%emt 0:00:53]} ({Black should play} 58... Ra7 $1 $19 59. Bf1 Ra3)
59. Bf1 {[%emt 0:00:00]} Bxe4 {[%emt 0:00:22]} ({But not} 59... Nxe4+ $6 60.
Nxe4 Bxe4 61. Bb5 $11) (59... Kxh6 $17 60. Bd3 Bxe4) 60. Bb5 $15 {[%emt 0:00:
00]} Ra8 {[%emt 0:01:59]} 61. c6 {[%emt 0:00:17]} Bf5 $1 {[%emt 0:01:49]
Threatens to win with ...Rd8.} 62. c7 {[%emt 0:00:24] [#] Inhibits Rd8.} ({
Better is} 62. Ke3 $1 $15) 62... Ra2 $1 $19 {[%emt 0:00:11]} 63. Bf4 $2 {
[%emt 0:02:51]} (63. Bb4 Rc2 64. Ba5) 63... Ne4+ {[%emt 0:00:31] Black is
clearly winning.} 64. Ke3 {[%emt 0:05:02]} Nxd2 {[%emt 0:00:07]} 65. Be8+ {
[%emt 0:00:02]} Kh7 {[%emt 0:00:14]} 66. Bb5 {[%emt 0:00:10]} Nf3 {[%emt 0:01:
30]} 67. Bc6 {[%emt 0:00:24]} Ra3+ {[%emt 0:00:14]} 68. Kf2 {[%emt 0:00:02]}
Rc3 {[%emt 0:00:34] Weighted Error Value: White=0.25 (precise) /Black=0.26 
(precise)} 0-1

[Event "44th Chess Olympiad Open 2022"]
[Site "Chennai"]
[Date "2022.08.03"]
[Round "6.24"]
[White "Wageih, Kareim"]
[Black "Kobese, Watu"]
[Result "1-0"]
[WhiteElo "2387"]
[BlackElo "2311"]
[Annotator "TA"]
[PlyCount "113"]
[EventDate "2022.??.??"]
[TimeControl "60"]

{[%evp 20,113,-15,-25,-6,-37,-30,-62,-63,-64,-36,-41,-45,-41,14,17,10,14,14,12,
164,154,151,150,153,168,166,128,130,128,134,109,136,110,110,102,109,109,116,
116,183,181,188,171,181,152,164,102,102,0,102,92,92,92,103,92,271,306,356,334,
302,100,155,146,240,146,183,176,185,175,366,0,191,0,375,375,375,365,364,361,
579,556,576,573,576,576,564,556,531,526,481,452,29975,29976,5152,4706]} 1. d4 {
[%emt 0:02:51]} Nf6 {[%emt 0:00:11]} 2. c4 {[%emt 0:01:37]} g6 {[%emt 0:00:20]}
3. Nc3 {[%emt 0:00:06]} Bg7 {[%emt 0:00:07]} 4. Nf3 {[%emt 0:00:17]} O-O {
[%emt 0:00:15]} 5. g3 {[%emt 0:00:06]} d6 {[%emt 0:00:07]} 6. Bg2 {[%emt 0:00:
00]} Nbd7 {[%emt 0:00:10]} 7. O-O {[%emt 0:00:12]} e5 {[%emt 0:00:12]} 8. dxe5
{[%emt 0:00:04]} dxe5 {[%emt 0:00:19]} 9. Be3 {[%emt 0:00:22]} c6 {[%emt 0:00:
00]} 10. h3 {[%emt 0:01:40]} Qe7 {[%emt 0:10:50]} 11. Qb3 {[%emt 0:00:00]} Ne8
{[%emt 0:19:43] E67: King's Indian: Fianchetto: 6...Nbd7.} 12. c5 {[%emt 0:00:
00] [#]} Kh8 $146 {[%emt 0:00:00]} (12... Nxc5 13. Qa3 b6 14. Na4 $16 (14. Ne4
Nd6 $14)) ({Predecessor:} 12... Ndf6 13. Rad1 Be6 14. Qa3 Nd5 15. Nxd5 Bxd5 16.
Bg5 f6 17. Bc1 Nc7 18. Nd2 e4 19. Nb1 {½-½ (31) Kostiuchenko,A-Kwiatkowski,S
Kiev 1959}) 13. Ne4 {[%emt 0:08:09]} f5 {[%emt 0:05:00] Black is slightly
better.} 14. Nd6 {[%emt 0:07:43]} Nxd6 {[%emt 0:00:00]} 15. cxd6 {[%emt 0:00:
00]} Qxd6 {[%emt 0:00:00]} 16. Ng5 $1 {[%emt 0:00:00]} f4 {[%emt 0:25:14]} ({
Better is} 16... Qe7 $1 $15 17. Ne6 Re8 18. Nxg7 Qxg7) 17. Nf7+ $1 $11 {
[%emt 0:17:05]} Rxf7 $1 {[%emt 0:00:00]} 18. Qxf7 {[%emt 0:22:08][%cal Rg3f4]}
fxe3 {[%emt 0:00:00]} 19. fxe3 {[%emt 0:00:07] Really sharp!} Nf6 {[%emt 0:00:
00] Inhibits Qe8+.} (19... Bf8 $11 {and Black is okay.}) 20. Rad1 $18 {[%emt 0:
00:00]} Be6 {[%emt 0:04:36] [#] Hoping for ...Qxd1.} 21. Qxg7+ $1 {[%emt 0:00:
00]} (21. Rxd6 Bxf7 22. Rfxf6 Bxf6 23. Rxf6 Bxa2 $17) (21. Qxb7 $6 Qf8 $11)
21... Kxg7 {[%emt 0:00:00]} 22. Rxd6 {[%emt 0:00:00]} Kf7 {[%emt 0:07:00]} 23.
a3 {[%emt 0:00:00]} Ke7 {[%emt 0:00:00]} 24. Rd2 {[%emt 0:00:00]} a5 {[%emt 0:
00:00]} 25. g4 {[%emt 0:03:03]} g5 {[%emt 0:00:00]} 26. Rc1 {[%emt 0:00:00]} e4
{[%emt 0:00:00]} 27. Rd4 {[%emt 0:00:00]} Bd5 {[%emt 0:00:00]} 28. Kh2 {
[%emt 0:02:29]} Ra6 {[%emt 0:04:29]} 29. Kg3 {[%emt 0:01:51]} Ke6 {[%emt 0:00:
00]} (29... Ra8 $16 30. a4 h5) 30. h4 {[%emt 0:01:15]} h6 {[%emt 0:00:13]} 31.
hxg5 {[%emt 0:00:01]} hxg5 {[%emt 0:00:01]} 32. Rf1 {[%emt 0:00:48]} Ra8 {
[%emt 0:04:46]} 33. Rh1 {[%emt 0:05:41]} (33. Rdd1 $18) 33... Kf7 $16 {[%emt 0:
00:00]} 34. Rf1 {[%emt 0:02:36]} (34. b3 $16) 34... Kg6 {[%emt 0:03:30]} (34...
Ke6 $1 $11 {remains equal.}) 35. a4 {[%emt 0:03:23]} Ra6 {[%emt 0:02:56]} 36.
b4 {[%emt 0:00:01]} axb4 {[%emt 0:00:39]} 37. Rxb4 {[%emt 0:00:02]} c5 $2 {
[%emt 0:00:41]} (37... b6 $16 38. Rh1 Ra5) 38. Rb5 $18 {[%emt 0:00:24]} Rxa4 {
[%emt 0:00:13]} 39. Rxc5 {[%emt 0:00:12][%cal Yf1f6] [#] Strongly threatening
Rxf6+!} Be6 {[%emt 0:00:10]} 40. Rc3 $2 {[%emt 0:01:59]} ({Don't do} 40. Re5 $6
Bxg4 41. Rb1 (41. Bxe4+ Nxe4+ 42. Kxg4 Nd2+ 43. e4 Nxf1 $11) 41... Kh5 42. Rh1+
(42. Rxb7 Ra3 $18) 42... Kg6 $18) (40. Rb5 $18) 40... Ra2 {[%emt 0:00:52]} (
40... Rb4 $142 41. Ra3 Bd7) 41. Rd1 {[%emt 0:06:14] And now Rd6 would win.} Ra5
{[%emt 0:08:39]} (41... Ra6 $16 42. Rb1 Bxg4) 42. Rd4 {[%emt 0:06:27]} Re5 {
[%emt 0:05:14]} 43. Rc7 {[%emt 0:03:43] Threatens to win with Re7.} Bd5 {
[%emt 0:02:15]} 44. Bh1 {[%emt 0:04:28]} Re8 $2 {[%emt 0:05:13]} (44... Bc6 {
was worth a try.} 45. Rd6 Re8) 45. Bg2 {[%emt 0:01:29]} (45. Rc5 $142) 45...
Re5 {[%emt 0:01:53]} 46. Bh1 $2 {[%emt 0:00:14]} (46. Rd1) 46... Re8 {[%emt 0:
00:00]} 47. Rc5 {[%emt 0:00:45]} Bc6 {[%emt 0:02:37]} 48. Rd6 {[%emt 0:01:07]
Against Re6} Bd7 {[%emt 0:02:18]} 49. Bg2 {[%emt 0:04:09]} Bc6 $2 {[%emt 0:00:
00]} (49... Re6) 50. Rf5 {[%emt 0:00:46]} Rf8 {[%emt 0:00:15]} 51. Re5 {
[%emt 0:00:35]} Kf7 {[%emt 0:02:34]} 52. Rxg5 {[%emt 0:00:16]} Ke7 {[%emt 0:00:
00]} 53. Rd4 {[%emt 0:00:24]} Ke6 {[%emt 0:00:15]} 54. Ra5 {[%emt 0:03:11]} Rg8
{[%emt 0:00:11]} 55. Bh3 {[%emt 0:01:30] aiming for g5+.} b6 {[%emt 0:01:36]} (
55... Bd5 $18 56. Rb5 Ke5) 56. g5+ {[%emt 0:00:25]} Ke7 {[%emt 0:00:16]} 57.
Re5+ {[%emt 0:00:08] Weighted Error Value: White=0.28 (precise) /Black=0.47}
1-0

[Event "44th Chess Olympiad Open 2022"]
[Site "Chennai"]
[Date "2022.08.03"]
[Round "6.24"]
[White "Solomon, Kenny"]
[Black "Amin, Bassem"]
[Result "0-1"]
[WhiteElo "2355"]
[BlackElo "2680"]
[Annotator "TA"]
[PlyCount "96"]
[EventDate "2022.??.??"]
[TimeControl "60"]

{[%evp 14,96,37,35,41,19,31,27,39,25,33,39,47,30,30,0,0,0,0,-19,-16,-28,-15,
-54,-44,-47,-49,-78,-57,-59,-48,-89,-89,-102,-99,-154,-106,-139,-141,-130,-140,
-218,-231,-225,-224,-219,-209,-218,-219,-205,-187,-227,-235,-237,-222,-203,
-213,-257,-247,-240,-216,-269,-258,-338,-350,-351,-328,-324,-276,-256,-239,
-343,-315,-323,-306,-431,-429,-496,-481,-454,-433,-425,-372,-372,-379]} 1. e4 {
[%emt 0:00:02]} g6 {[%emt 0:05:09]} 2. d4 {[%emt 0:00:19]} Bg7 {[%emt 0:00:13]}
3. Nc3 {[%emt 0:00:26]} c6 {[%emt 0:00:27]} 4. Nf3 {[%emt 0:04:07]} d6 {
[%emt 0:00:27]} 5. h3 {[%emt 0:01:09]} Nf6 {[%emt 0:00:38]} 6. Be3 {[%emt 0:00:
00]} b5 {[%emt 0:02:13]} 7. Bd3 {[%emt 0:01:34]} O-O {[%emt 0:00:35]} 8. O-O {
[%emt 0:01:45]} Nbd7 {[%emt 0:01:20] B08: Pirc Defence: Classical System.} 9.
Re1 {[%emt 0:13:23]} e5 {[%emt 0:01:50]} 10. dxe5 {[%emt 0:00:37]} dxe5 {
[%emt 0:00:06] White has an edge.} 11. a4 {[%emt 0:00:15]} b4 {[%emt 0:00:19]}
12. Ne2 {[%emt 0:00:53]} Qe7 {[%emt 0:00:13]} 13. Qd2 {[%emt 0:14:36]} a5 {
[%emt 0:00:32] [#]} 14. Bh6 $146 {[%emt 0:16:29]} ({Predecessor:} 14. Ng3 Nc5
15. Qe2 Rd8 16. Bc4 h6 17. Bxf7+ Kxf7 18. Qc4+ Ne6 19. Nxe5+ Kg8 20. Nxg6 {
½-½ (66) Hou,Y (2663)-Anton Guijarro,D (2627) Almaty 2016}) 14... Rd8 {
[%emt 0:18:31]} 15. Bxg7 {[%emt 0:00:00]} Kxg7 {[%emt 0:00:58]} 16. Ng3 {
[%emt 0:00:00]} Ne8 {[%emt 0:16:16]} 17. Qe3 {[%emt 0:05:14]} f6 {[%emt 0:00:
00]} 18. h4 {[%emt 0:10:04]} Qc5 {[%emt 0:07:25]} 19. Qc1 {[%emt 0:06:40]} Nf8
{[%emt 0:00:24][%cal Yd7f8,Yf8e6,Ye6g5]} 20. h5 {[%emt 0:01:58]} Ne6 {[%emt 0:
00:34]} 21. h6+ {[%emt 0:00:53]} Kf8 {[%emt 0:04:30]} 22. Ne2 {[%emt 0:00:00]}
Nd6 {[%emt 0:09:51] Black converts the advantage convincingly.} 23. Nd2 {
[%emt 0:00:32]} Ng5 {[%emt 0:01:26]} 24. Nb3 {[%emt 0:01:41]} (24. Ng3 $142)
24... Qa7 {[%emt 0:01:39]} (24... Qb6 $142 25. Ng3 Ndf7) 25. Ng3 {[%emt 0:00:
00]} Be6 {[%emt 0:00:18]} 26. Nd2 {[%emt 0:06:30]} Ndf7 {[%emt 0:02:45] Black
is much more active.} 27. Nf3 {[%emt 0:01:38]} (27. Nc4 $17 {was necessary.})
27... Nxf3+ $19 {[%emt 0:00:40]} 28. gxf3 {[%emt 0:00:02] [#]} Ng5 $1 {[%emt 0:
00:00]} 29. Qe3 {[%emt 0:01:35] [#]} Qxe3 $1 {[%emt 0:01:00]} 30. Rxe3 {
[%emt 0:00:03]} Nf7 {[%emt 0:00:26]} 31. Ne2 {[%emt 0:01:05]} g5 {[%emt 0:00:
00] Prevents f4.} 32. Kg2 {[%emt 0:02:35]} Nxh6 {[%emt 0:00:08]} 33. Rh1 {
[%emt 0:00:04]} Kg7 {[%emt 0:00:08]} 34. Ng3 {[%emt 0:00:04]} Ng8 {[%emt 0:00:
00]} 35. Nh5+ {[%emt 0:06:30]} Kg6 {[%emt 0:00:54]} 36. Ree1 {[%emt 0:00:17]}
b3 {[%emt 0:04:28] Strongly threatening ...Rab8.} 37. Re3 {[%emt 0:01:45]} Rab8
{[%emt 0:00:27] ...bxc2 is the strong threat.} 38. c3 {[%emt 0:00:35]} Rd7 {
[%emt 0:00:20] White must now prevent ...Rbd8.} 39. Ng3 {[%emt 0:00:56]} Rbd8 {
[%emt 0:00:17]} 40. Be2 {[%emt 0:00:12]} Rd2 {[%emt 0:00:20]} 41. Rb1 {[%emt 0:
00:00]} Ne7 {[%emt 0:31:55][%cal Yg8e7,Ye7g6,Yg6f4,Yf4d3,Yd3c5] Threatens to
win with ...Kf7.} 42. Nf1 {[%emt 0:01:39]} (42. c4 $142) 42... R2d7 {[%emt 0:
00:23]} 43. c4 {[%emt 0:00:00]} Rb8 {[%emt 0:00:00]} 44. Rc1 {[%emt 0:00:00]} (
44. Rd1 {is a better defense.} Rd4 45. Red3) 44... Kf7 {[%emt 0:00:00]} 45. Bd1
{[%emt 0:00:00]} Ng6 {[%emt 0:00:00]} 46. Bxb3 {[%emt 0:00:00]} Nf4+ {[%emt 0:
00:00]} 47. Kh2 {[%emt 0:00:00]} Nd3 {[%emt 0:00:00]} 48. Rc3 {[%emt 0:00:00]}
Nc5 {[%emt 0:00:00] Weighted Error Value: White=0.23 (precise) /Black=0.07 
(flawless)} 0-1

[Event "44th Chess Olympiad Open 2022"]
[Site "Chennai"]
[Date "2022.08.03"]
[Round "6.25"]
[White "Subelj, Jan"]
[Black "Zambrana, Osvaldo"]
[Result "1/2-1/2"]
[WhiteElo "2498"]
[BlackElo "2417"]
[Annotator "TA"]
[PlyCount "120"]
[EventDate "2022.??.??"]
[TimeControl "60"]

{[%evp 15,120,28,53,43,56,57,50,68,79,76,76,55,74,67,70,75,74,77,76,20,107,79,
153,56,60,56,73,56,77,13,38,0,0,0,0,0,16,8,15,0,0,0,83,62,59,53,60,46,76,72,59,
60,197,201,207,199,208,202,191,63,90,77,83,54,42,66,133,133,124,8,8,0,0,0,0,0,
0,0,0,0,0,0,0,0,0,0,0,0,0,0,0,0,0,0,0,0,0,0,0,0,0,0,0,0,0,0,0]} 1. e4 {[%emt 0:
00:00]} c5 {[%emt 0:00:29]} 2. Nf3 {[%emt 0:00:16]} Nc6 {[%emt 0:00:06]} 3. Bb5
{[%emt 0:00:47]} d6 {[%emt 0:00:14]} 4. O-O {[%emt 0:01:49]} Bd7 {[%emt 0:00:
00]} 5. Re1 {[%emt 0:01:42]} Nf6 {[%emt 0:01:57]} 6. c3 {[%emt 0:03:24]} a6 {
[%emt 0:00:33]} 7. Bf1 {[%emt 0:03:13]} Bg4 {[%emt 0:07:01]} 8. h3 {[%emt 0:00:
00]} Bh5 {[%emt 0:00:13]} 9. g4 {[%emt 0:02:28] B51: Sicilian: Moscow
Variation (3 Bb5+) without 3...Bd7.} Bg6 {[%emt 0:00:14]} 10. d4 $1 {[%emt 0:
00:00]} cxd4 {[%emt 0:11:54]} (10... Nxe4 11. d5 Nb8 12. Rxe4 $1 Bxe4 13. Qa4+
Nd7 14. Qxe4 $16) 11. cxd4 {[%emt 0:00:17] White is slightly better.} d5 {
[%emt 0:00:02]} (11... Nxe4 $2 12. d5 Nb8 13. Rxe4 $1 (13. Qa4+ Nd7 $18) 13...
Bxe4 14. Qa4+ Nd7 15. Qxe4 $16) 12. exd5 {[%emt 0:00:00]} Nxd5 {[%emt 0:00:16]}
13. Nc3 {[%emt 0:01:09]} e6 {[%emt 0:00:33]} 14. Nxd5 {[%emt 0:00:50]} Qxd5 {
[%emt 0:00:59]} 15. Bg2 {[%emt 0:00:06] Bg5 is the strong threat.} Bb4 {
[%emt 0:09:58] [#]} 16. Ne5 $1 {[%emt 0:22:07]} Qb5 {[%emt 0:08:16]} 17. Bd2 {
[%emt 0:11:28] [#]} (17. a4 $16 Qb6 18. a5 Nxa5 19. Qa4+ Qb5 20. Nxg6 hxg6 21.
Qxb5+ axb5 22. Re5) 17... Bxd2 $146 {[%emt 0:06:34]} (17... Nxd4 $11 {remains
equal.} 18. Bc3 Rd8) ({Predecessor:} 17... O-O 18. a4 Qa5 19. Nxc6 bxc6 20. Re5
Qb6 21. Bc3 Bd6 22. a5 Qa7 23. Re1 Rac8 {½-½ (47) Priyadharshan,K (2433)
-Gareyev,T (2640) Arlington 2014}) 18. Qxd2 {[%emt 0:00:00]} Rd8 {[%emt 0:05:
01]} (18... Nxe5 $142 19. Rxe5 Qb6) 19. Nxc6 {[%emt 0:00:00]} (19. a4 $16 Qb6
20. Bxc6+ bxc6 21. Qc3) 19... bxc6 $14 {[%emt 0:00:03]} 20. Rac1 {[%emt 0:00:
43]} Rd6 {[%emt 0:03:24]} 21. Qf4 {[%emt 0:03:21]} Ke7 {[%emt 0:00:02] [#]} 22.
Rc5 {[%emt 0:13:12]} ({Better is} 22. Qe3 $1 $16) 22... Qb4 {[%emt 0:07:26]}
23. Rec1 {[%emt 0:00:16] And now R5c4 would win.} Qxd4 {[%emt 0:10:10]} 24.
Qxd4 {[%emt 0:00:09]} Rxd4 {[%emt 0:00:10]} 25. Rxc6 {[%emt 0:01:16]} Rb8 {
[%emt 0:01:46]} 26. b3 {[%emt 0:01:43]} a5 {[%emt 0:00:04]} 27. Ra6 {[%emt 0:
04:52]} Rb5 {[%emt 0:06:43]} 28. Rc7+ {[%emt 0:00:11]} Kd8 {[%emt 0:02:40]} (
28... Kf6 $1 $11 {keeps the balance.}) 29. Rca7 {[%emt 0:00:00]} Rd1+ {[%emt 0:
00:02]} 30. Kh2 {[%emt 0:00:10]} Rd2 {[%emt 0:00:12][%csl Ya2,Yf2]} 31. Bc6 {
[%emt 0:02:24]} Rb4 {[%emt 0:04:12]} 32. Kg3 {[%emt 0:00:00]} ({Don't play} 32.
Rxa5 Rxf2+ 33. Kg3 Rc2 $11) 32... Rd6 {[%emt 0:06:13]} 33. Ba4 {[%emt 0:00:18]}
Rd3+ {[%emt 0:00:01]} ({Black should try} 33... Rxa6 $1 $14 34. Rxa6 Bb1) 34.
f3 $18 {[%emt 0:00:32]} e5 {[%emt 0:00:31]} 35. Rxa5 {[%emt 0:01:24]} e4 {
[%emt 0:00:39]} 36. Re5 {[%emt 0:00:32][%csl Ga4][%cal Re5e8]} f6 {[%emt 0:00:
19] [#]} 37. Ree7 {[%emt 0:00:19]} (37. Re6 $1 $18 Rxf3+ 38. Kg2) 37... Rxf3+
$14 {[%emt 0:00:32]} 38. Kg2 {[%emt 0:03:20] White wants to mate with Red7+.
White is more active.} Rd4 {[%emt 0:02:00]} 39. Rad7+ {[%emt 0:00:11]} ({
Much weaker is} 39. Rxg7 $6 Rd2+ 40. Kg1 Rd1+ 41. Kh2 Rd2+ 42. Kg1 Rd1+ 43. Kh2
Rd2+ 44. Kg1 $11) 39... Rxd7 {[%emt 0:00:06]} 40. Rxd7+ {[%emt 0:00:04]
Endgame KRB-KRB} Kc8 {[%emt 0:00:07]} (40... Ke8 $14) 41. Rxg7 $16 {[%emt 0:30:
34] aiming for h4.} Rc3 {[%emt 0:03:11]} 42. Rg8+ {[%emt 0:00:00]} (42. h4 $16
{Threatens to win with h5.} Rc2+ 43. Kg3) 42... Kc7 $11 {[%emt 0:02:03] The
position is equal.} 43. Be8 {[%emt 0:00:00]} Kd6 {[%emt 0:00:30]} 44. Bxg6 {
[%emt 0:00:00]} hxg6 {[%emt 0:00:41]} 45. Rxg6 {[%emt 0:00:00] KR-KR} Ke5 {
[%emt 0:00:07]} 46. h4 {[%emt 0:00:00]} Rc2+ {[%emt 0:00:12]} 47. Kg3 {[%emt 0:
00:00]} Rxa2 {[%emt 0:03:15]} 48. Rg8 {[%emt 0:00:00]} Rc2 {[%emt 0:00:23]} 49.
Re8+ {[%emt 0:00:00]} Kd4 {[%emt 0:00:00]} 50. Rd8+ {[%emt 0:00:00]} Ke5 {
[%emt 0:00:11]} 51. h5 {[%emt 0:00:00]} Rc3+ {[%emt 0:00:43]} 52. Kh4 {[%emt 0:
00:00]} Rxb3 {[%emt 0:07:37]} 53. h6 {[%emt 0:00:00] Intending h7 and mate.}
Rb1 {[%emt 0:00:16]} 54. Kh5 {[%emt 0:00:00]} Rh1+ {[%emt 0:05:54]} 55. Kg6 {
[%emt 0:00:00]} Rh4 {[%emt 0:00:31]} 56. Re8+ {[%emt 0:00:00]} Kf4 {[%emt 0:00:
20]} 57. h7 {[%emt 0:00:00]} Rxg4+ {[%emt 0:00:16]} 58. Kxf6 {[%emt 0:00:00]}
Rh4 {[%emt 0:00:08]} 59. h8=R {[%emt 0:00:00]} Rxh8 {[%emt 0:00:11]} 60. Rxh8 {
[%emt 0:00:00]} e3 {[%emt 0:00:00] Black defended with fortune. Weighted Error
Value: White=0.14 (very precise) /Black=0.16 (very precise)} 1/2-1/2